[Event "GER-ch Youth-U10 2022"]
[Site "Willingen"]
[Date "2022.06.06"]
[Round "3.5"]
[White "Kutz, Paul Matti"]
[Black "Vartanian, Roman"]
[Result "0-1"]
[ECO "B50"]
[WhiteElo "1202"]
[BlackElo "1511"]
[Annotator "NA RC COMBH"]
[PlyCount "138"]
[EventDate "2022.06.05"]
[EventType "swiss"]
[EventRounds "11"]
[EventCountry "GER"]
[SourceTitle "playchess.com"]
[Source "ChessBase"]
[SourceQuality "1"]
[TimeControl "40/4500+30:900+30"]

1. e4 {[%emt 0:00:01]} c5 {[%emt 0:00:15]} 2. Nf3 {[%emt 0:00:09]} d6 {[%emt 0:00:06]} 3. c3 {[%emt 0:00:08]} Nf6 {[%emt 0:00:07]} 4. Be2 {[%emt 0:00:12]} e6 {[%emt 0:00:29]} 5. O-O {[%emt 0:00:13]} Be7 {[%emt 0:00:05]} 6. d3 {[%emt 0:00:24]} O-O {[%emt 0:00:19]} 7. Nbd2 {[%emt 0:00:17]} Qc7 {[%emt 0:00:26]} 8. Re1 {[%emt 0:00:19]} Nbd7 {[%emt 0:00:17]} 9. d4 {[%emt 0:01:21]} b6 {[%emt 0:00:15]} 10. Bd3 {[%emt 0:01:03]} Bb7 {[%emt 0:00:59]} 11. e5 {[%emt 0:00:38]} dxe5 {[%emt 0:01:00]} 12. dxe5 {[%emt 0:00:18]} Ng4 {[%emt 0:02:22]} 13. Nc4 {[%emt 0:01:46]} Bxf3 {[%emt 0:00:39]} 14. Qxf3 {[%emt 0:00:29]} Ngxe5 {[%emt 0:00:52]} 15. Bxh7+ {[%emt 0:00:35]} Kxh7 {[%emt 0:04:37]} 16. Qh5+ {[%emt 0:00:43]} Kg8 {[%emt 0:00:18]} 17. Nxe5 {[%emt 0:00:22]} Nxe5 {[%emt 0:02:26]} 18. Rxe5 {[%emt 0:01:09]} g6 {[%emt 0:01:45]} 19. Qe2 {[%emt 0:00:30]} Bd6 {[%emt 0:01:15]} 20. Re3 {[%emt 0:00:07]} Bxh2+ {[%emt 0:01:43]} 21. Kh1 {[%emt 0:00:06]} Bf4 {[%emt 0:00:33]} 22. Rh3 {[%emt 0:00:14]} Kg7 {[%emt 0:00:38]} 23. b4 {[%emt 0:02:00]} cxb4 {[%emt 0:01:15]} 24. Bb2 {[%emt 0:00:43]} Be5 {[%emt 0:03:55]} 25. Qd2 {[%emt 0:01:13]} Rh8 {[%emt 0:01:10]} 26. cxb4 {[%emt 0:00:46]} Rxh3+ {[%emt 0:00:51]} 27. gxh3 {[%emt 0:00:10]} Rh8 {[%emt 0:01:35]} 28. Rc1 {[%emt 0:01:43]} Rxh3+ {[%emt 0:04:07]} 29. Kg1 {[%emt 0:00:32]} Qb8 {[%emt 0:02:28]} 30. Qf4 {[%emt 0:04:17]} Rh5 {[%emt 0:06:47]} 31. Rd1 {[%emt 0:01:30]} Qc7 {[%emt 0:01:55]} 32. Rc1 {[%emt 0:01:01]} Qd6 {[%emt 0:01:35]} 33. Bxe5+ {[%emt 0:06:23]} Qxe5 {[%emt 0:00:19]} 34. Qxe5+ {[%emt 0:00:20]} Rxe5 {[%emt 0:00:08]} 35. Rc7 {[%emt 0:00:09]} a5 {[%emt 0:00:22]} 36. Rb7 {[%emt 0:00:28]} axb4 {[%emt 0:00:14]} 37. Rxb6 {[%emt 0:00:09]} Ra5 {[%emt 0:00:09]} 38. Rxb4 {[%emt 0:00:09]} Rxa2 {[%emt 0:00:12]} 39. Rb7 {[%emt 0:00:12]} g5 {[%emt 0:00:22]} 40. Kg2 {[%emt 0:00:17]} Ra4 {[%emt 0:00:07]} 41. Rb5 {[%emt 0:15:11]} Kf6 {[%emt 0:15:18]} 42. Rb3 {[%emt 0:00:42]} Kf5 {[%emt 0:00:17]} 43. Rb5+ {[%emt 0:00:13]} e5 {[%emt 0:00:09]} 44. Rb7 {[%emt 0:00:11]} f6 {[%emt 0:00:06]} 45. Rb5 {[%emt 0:00:25]} Ra3 {[%emt 0:00:23]} 46. Rb8 {[%emt 0:00:22]} Kf4 {[%emt 0:00:08]} 47. Rb4+ {[%emt 0:00:43]} e4 {[%emt 0:00:06]} 48. Rb6 {[%emt 0:00:05]} f5 {[%emt 0:00:07]} 49. Rh6 {[%emt 0:00:56]} Ra2 {[%emt 0:00:25]} 50. Re6 {[%emt 0:00:36]} Re2 {[%emt 0:00:17]} 51. Kf1 {[%emt 0:03:19]} Kf3 {[%emt 0:00:47]} 52. Rf6 {[%emt 0:00:42]} Rxf2+ {[%emt 0:00:45]} 53. Kg1 {[%emt 0:00:14]} Kg3 {[%emt 0:00:13]} 54. Rc6 {[%emt 0:00:09]} g4 {[%emt 0:00:16]} 55. Rc3+ {[%emt 0:00:26]} Rf3 {[%emt 0:00:06]} 56. Rc2 {[%emt 0:00:09]} Kf4 {[%emt 0:00:11]} 57. Rc8 {[%emt 0:00:17]} Rd3 {[%emt 0:00:44]} 58. Rc2 {[%emt 0:00:14]} g3 {[%emt 0:00:19]} 59. Rc8 {[%emt 0:00:16]} Kf3 {[%emt 0:00:09]} 60. Rc1 {[%emt 0:00:09]} e3 {[%emt 0:00:17]} 61. Rf1+ {[%emt 0:01:20]} Kg4 {[%emt 0:00:19]} 62. Re1 {[%emt 0:00:39]} f4 {[%emt 0:00:11]} 63. Kh1 {[%emt 0:00:29]} f3 {[%emt 0:00:15]} 64. Ra1 {[%emt 0:00:17]} Rd4 {[%emt 0:00:09]} 65. Re1 {[%emt 0:00:18]} f2 {[%emt 0:00:07]} 66. Kg2 {[%emt 0:00:07]} fxe1=N+ {[%emt 0:00:35]} 67. Kg1 {[%emt 0:00:11]} Kf3 {[%emt 0:00:17]} 68. Kh1 {[%emt 0:00:19]} Rd1 {[%emt 0:00:06]} 69. Kg1 {[%emt 0:00:10]} Nd3# {[%emt 0:00:11]} 0-1

[Event "GER-ch Youth-U10 2022"]
[Site "Willingen"]
[Date "2022.06.06"]
[Round "3.6"]
[White "Peglau, Paul David"]
[Black "Campora, Daniel H."]
[Result "1/2-1/2"]
[ECO "D02"]
[WhiteElo "1623"]
[BlackElo "2397"]
[Annotator "TA"]
[PlyCount "48"]
[EventDate "2022.06.05"]
[EventType "swiss"]
[EventRounds "11"]
[EventCountry "GER"]
[SourceTitle "playchess.com"]
[Source "ChessBase"]
[SourceQuality "1"]
[TimeControl "40/4500+30:900+30"]

{[%evp 9,48,16,27,23,41,0,4,9,-1,0,77,77,74,13,16,-13,-6,-6,0,-11,-10,-6,0,0,0,0,0,0,8,0,0,0,4,4,4,4,4,4,8,0,0]} 1. d4 {[%emt 0:00:11]} d5 {[%emt 0:00:09]} 2. Nf3 {[%emt 0:00:12]} c5 {[%emt 0:00:37]} 3. e3 {[%emt 0:00:26]} a6 {[%emt 0:00:30]} 4. Be2 {[%emt 0:00:20]} Nc6 {[%emt 0:00:46]} 5. O-O {[%emt 0:01:37]} Nf6 {[%emt 0:01:44]} 6. c4 {[%emt 0:07:56] [#] D02: 1 d4 d5 2 Nf3 sidelines, including 2...Nf6 3 g3 and 2...Nf6 3 Bf4.} cxd4 $146 {[%emt 0:01:53]} ({Predecessor:} 6... e6 7. Nc3 dxc4 8. Bxc4 b5 9. Be2 c4 10. e4 Be7 11. d5 exd5 12. exd5 Nb4 13. a4 Rb8 14. Bf4 Bd6 15. Bxd6 Qxd6 16. axb5 axb5 {1-0 (61) Bermejo Redondo,O (1896)-Petru,L (1829) Madrid 2013}) 7. exd4 {[%emt 0:01:20]} dxc4 {[%emt 0:00:09]} 8. Bxc4 {[%emt 0:00:07]} e6 {[%emt 0:00:33]} 9. Nc3 {[%emt 0:00:37]} Nb4 {[%emt 0:04:14] Prevents d5.} (9... b5 $11 10. Bd3 Nb4) 10. Bg5 $16 {[%emt 0:03:02] Threatens to win with Bxf6.} Be7 {[%emt 0:02:09]} 11. Qe2 {[%emt 0:04:01]} ({White should play} 11. Bxf6 $16 Bxf6 12. Qa4+ Nc6 13. d5 exd5 14. Rae1+ (14. Nxd5 O-O $11) 14... Be6 15. Bxd5) 11... O-O $11 {[%emt 0:01:13] The position is equal.} 12. Rfd1 {[%emt 0:01:33]} b5 {[%emt 0:05:26]} 13. Bb3 {[%emt 0:00:42][%cal Od4d5]} Bb7 {[%emt 0:01:22] Against d5} 14. Rac1 {[%emt 0:02:31]} Nbd5 {[%emt 0:02:52]} 15. Nxd5 {[%emt 0:09:12]} Bxd5 {[%emt 0:03:29]} 16. Ne5 {[%emt 0:03:03]} Re8 {[%emt 0:05:31]} 17. Bxd5 {[%emt 0:03:09]} (17. Bxf6 {is more complex.} Bxf6 18. Bxd5 Qxd5 19. Rc7) 17... Nxd5 {[%emt 0:00:12]} 18. Bxe7 {[%emt 0:00:23]} Qxe7 {[%emt 0:05:26]} 19. a3 {[%emt 0:06:47]} Rac8 {[%emt 0:02:03]} 20. Qf3 {[%emt 0:02:46]} Nf6 {[%emt 0:07:00]} 21. Rc6 {[%emt 0:02:38]} Qa7 {[%emt 0:04:31]} 22. Rdc1 {[%emt 0:01:29]} Rxc6 {[%emt 0:01:23]} 23. Nxc6 {[%emt 0:01:47]} Qd7 {[%emt 0:01:40]} 24. Qf4 {[%emt 0:03:40]} Nd5 {[%emt 0:02:06] Weighted Error Value: White=0.11 (very precise) /Black=0.10 (very precise)} 1/2-1/2

[Event "GER-ch Youth-U10 2022"]
[Site "Willingen"]
[Date "2022.06.06"]
[Round "3.7"]
[White "Junge, Mattheo Gabriel"]
[Black "Lanert, Theodor"]
[Result "1-0"]
[ECO "B13"]
[WhiteElo "1132"]
[BlackElo "1306"]
[Annotator "NA RC COMBH"]
[PlyCount "109"]
[EventDate "2022.06.05"]
[EventType "swiss"]
[EventRounds "11"]
[EventCountry "GER"]
[SourceTitle "playchess.com"]
[Source "ChessBase"]
[SourceQuality "1"]
[TimeControl "40/4500+30:900+30"]

1. e4 {[%emt 0:00:03]} c6 {[%emt 0:00:04]} 2. Nf3 {[%emt 0:00:13]} d5 {[%emt 0:00:07]} 3. exd5 {[%emt 0:00:06]} cxd5 {[%emt 0:00:07]} 4. d4 {[%emt 0:00:04]} Bg4 {[%emt 0:00:16]} 5. Be3 {[%emt 0:00:23]} Nc6 {[%emt 0:01:05]} 6. Nbd2 {[%emt 0:00:50]} Nf6 {[%emt 0:00:28]} 7. Bd3 {[%emt 0:00:25]} a6 {[%emt 0:00:20]} 8. c3 {[%emt 0:00:45]} e5 {[%emt 0:00:32]} 9. dxe5 {[%emt 0:00:42]} Nxe5 {[%emt 0:00:19]} 10. Be2 {[%emt 0:00:07]} Nxf3+ {[%emt 0:00:44]} 11. Bxf3 {[%emt 0:00:22]} Bxf3 {[%emt 0:00:06]} 12. Nxf3 {[%emt 0:00:11]} Be7 {[%emt 0:00:20]} 13. O-O {[%emt 0:00:13]} O-O {[%emt 0:00:04]} 14. Qb3 {[%emt 0:00:34]} Qc7 {[%emt 0:00:18]} 15. Bg5 {[%emt 0:01:16]} Rad8 {[%emt 0:00:21]} 16. Bxf6 {[%emt 0:00:17]} Bxf6 {[%emt 0:00:09]} 17. Rad1 {[%emt 0:00:15]} Qc6 {[%emt 0:02:01]} 18. Nd4 {[%emt 0:00:53]} Bxd4 {[%emt 0:00:06]} 19. Rxd4 {[%emt 0:00:09]} Rd7 {[%emt 0:00:48]} 20. Rfd1 {[%emt 0:00:33]} Rfd8 {[%emt 0:00:07]} 21. h3 {[%emt 0:00:47]} h6 {[%emt 0:00:08]} 22. R1d3 {[%emt 0:00:40]} Qc5 {[%emt 0:03:38]} 23. Qd1 {[%emt 0:00:51]} b5 {[%emt 0:02:42]} 24. b3 {[%emt 0:03:04]} Re8 {[%emt 0:03:59]} 25. Rxd5 {[%emt 0:01:26]} Rxd5 {[%emt 0:00:10]} 26. Rxd5 {[%emt 0:00:10]} Re1+ {[%emt 0:00:04]} 27. Qxe1 {[%emt 0:00:09]} Qxd5 {[%emt 0:00:05]} 28. f3 {[%emt 0:00:24]} Kf8 {[%emt 0:00:07]} 29. Qc1 {[%emt 0:03:24]} Qc5+ {[%emt 0:00:30]} 30. Kh1 {[%emt 0:00:49]} a5 {[%emt 0:00:37]} 31. Qd2 {[%emt 0:00:25]} Ke7 {[%emt 0:00:18]} 32. Qe2+ {[%emt 0:02:02]} Kd6 {[%emt 0:00:28]} 33. Qd3+ {[%emt 0:00:53]} Ke6 {[%emt 0:00:20]} 34. Qe4+ {[%emt 0:00:39]} Kd6 {[%emt 0:00:43]} 35. Qf4+ {[%emt 0:00:30]} Ke7 {[%emt 0:00:31]} 36. Qd2 {[%emt 0:02:50]} f6 {[%emt 0:01:50]} 37. Kh2 {[%emt 0:02:35]} Qe5+ {[%emt 0:00:25]} 38. Kg1 {[%emt 0:00:41]} Qc5+ {[%emt 0:00:22]} 39. Kf1 {[%emt 0:00:13]} a4 {[%emt 0:01:34]} 40. bxa4 {[%emt 0:02:44]} bxa4 {[%emt 0:00:16]} 41. Qb2 {[%emt 0:19:36]} Kd6 {[%emt 0:18:37]} 42. Qb4 {[%emt 0:01:21]} Qxb4 {[%emt 0:01:49]} 43. cxb4 {[%emt 0:00:06]} a3 {[%emt 0:00:06]} 44. Ke2 {[%emt 0:00:06]} Kc6 {[%emt 0:00:35]} 45. Kd3 {[%emt 0:00:11]} Kb5 {[%emt 0:00:02]} 46. Kc3 {[%emt 0:00:10]} f5 {[%emt 0:00:47]} 47. g4 {[%emt 0:00:28]} f4 {[%emt 0:00:42]} 48. Kb3 {[%emt 0:00:06]} g6 {[%emt 0:00:10]} 49. Kxa3 {[%emt 0:00:15]} h5 {[%emt 0:00:06]} 50. Kb3 {[%emt 0:00:11]} hxg4 {[%emt 0:00:09]} 51. hxg4 {[%emt 0:00:07]} g5 {[%emt 0:00:05]} 52. a4+ {[%emt 0:00:05]} Kb6 {[%emt 0:00:04]} 53. Kc4 {[%emt 0:00:09]} Kc6 {[%emt 0:00:06]} 54. b5+ {[%emt 0:00:06]} Kd6 {[%emt 0:00:11]} 55. a5 {[%emt 0:00:09]} 1-0

[Event "GER-ch Youth-U10 2022"]
[Site "Willingen"]
[Date "2022.06.06"]
[Round "3.9"]
[White "Chua, Daniel James"]
[Black "Sheng, Ming"]
[Result "1/2-1/2"]
[ECO "B22"]
[WhiteElo "1314"]
[BlackElo "1258"]
[Annotator "NA RC COMBH"]
[PlyCount "66"]
[EventDate "2022.06.05"]
[EventType "swiss"]
[EventRounds "11"]
[EventCountry "GER"]
[SourceTitle "playchess.com"]
[Source "ChessBase"]
[SourceQuality "1"]
[TimeControl "40/4500+30:900+30"]

1. e4 {[%emt 0:00:03]} c5 {[%emt 0:00:33]} 2. d4 {[%emt 0:00:04]} cxd4 {[%emt 0:00:08]} 3. c3 {[%emt 0:00:13]} d5 {[%emt 0:00:05]} 4. exd5 {[%emt 0:00:05]} Qxd5 {[%emt 0:00:11]} 5. cxd4 {[%emt 0:00:03]} Nc6 {[%emt 0:00:27]} 6. Nf3 {[%emt 0:00:28]} e5 {[%emt 0:01:08]} 7. Nc3 {[%emt 0:00:54]} Bb4 {[%emt 0:00:38]} 8. Bd2 {[%emt 0:01:23]} Bxc3 {[%emt 0:00:45]} 9. Bxc3 {[%emt 0:00:09]} exd4 {[%emt 0:05:58]} 10. Nxd4 {[%emt 0:00:26]} Nf6 {[%emt 0:02:34]} 11. Nxc6 {[%emt 0:04:20]} Qxc6 {[%emt 0:00:35]} 12. Bxf6 {[%emt 0:03:01]} gxf6 {[%emt 0:01:13]} 13. Qd4 {[%emt 0:04:37]} Qe6+ {[%emt 0:03:36]} 14. Be2 {[%emt 0:02:27]} Qe5 {[%emt 0:00:53]} 15. Qd2 {[%emt 0:01:10]} Bd7 {[%emt 0:02:59]} 16. O-O {[%emt 0:07:30]} O-O-O {[%emt 0:03:21]} 17. f4 {[%emt 0:02:25]} Qc5+ {[%emt 0:00:39]} 18. Kh1 {[%emt 0:00:17]} Bc6 {[%emt 0:01:33]} 19. Qe1 {[%emt 0:02:23]} Rde8 {[%emt 0:01:56]} 20. Rc1 {[%emt 0:01:28]} Qe3 {[%emt 0:01:02]} 21. Bg4+ {[%emt 0:03:09]} Kb8 {[%emt 0:01:19]} 22. Qxe3 {[%emt 0:02:40]} Rxe3 {[%emt 0:01:11]} 23. Bf3 {[%emt 0:00:07]} Bxf3 {[%emt 0:00:13]} 24. Rxf3 {[%emt 0:00:06]} Rxf3 {[%emt 0:00:11]} 25. gxf3 {[%emt 0:00:04]} Rd8 {[%emt 0:01:04]} 26. b3 {[%emt 0:01:15]} Rd4 {[%emt 0:00:25]} 27. Rc4 {[%emt 0:00:06]} Rd1+ {[%emt 0:00:17]} 28. Kg2 {[%emt 0:00:05]} Rd2+ {[%emt 0:00:04]} 29. Kg3 {[%emt 0:00:12]} Rxa2 {[%emt 0:00:05]} 30. Re4 {[%emt 0:00:03]} Rc2 {[%emt 0:00:56]} 31. Re7 {[%emt 0:00:31]} Rc7 {[%emt 0:00:45]} 32. Re8+ {[%emt 0:01:19]} Rc8 {[%emt 0:01:20]} 33. Re7 {[%emt 0:00:16]} Rc7 {[%emt 0:01:25]} 1/2-1/2

[Event "GER-ch Youth-U10 2022"]
[Site "Willingen"]
[Date "2022.06.06"]
[Round "3.10"]
[White "Stehning, Toni"]
[Black "Gersemann, Karl"]
[Result "1-0"]
[ECO "B24"]
[WhiteElo "1097"]
[BlackElo "1620"]
[Annotator "NA RC COMBH"]
[PlyCount "145"]
[EventDate "2022.06.05"]
[EventType "swiss"]
[EventRounds "11"]
[EventCountry "GER"]
[SourceTitle "playchess.com"]
[Source "ChessBase"]
[SourceQuality "1"]
[TimeControl "40/4500+30:900+30"]

1. e4 {[%emt 0:00:12]} c5 {[%emt 0:00:05]} 2. Nc3 {[%emt 0:00:14]} e6 {[%emt 0:00:11]} 3. Nge2 {[%emt 0:00:29]} Nc6 {[%emt 0:00:11]} 4. g3 {[%emt 0:00:27]} g6 {[%emt 0:00:12]} 5. Bg2 {[%emt 0:00:22]} Bg7 {[%emt 0:00:09]} 6. d3 {[%emt 0:00:10]} Nge7 {[%emt 0:00:23]} 7. Be3 {[%emt 0:00:15]} Nd4 {[%emt 0:00:59]} 8. Qd2 {[%emt 0:00:35]} Nec6 {[%emt 0:00:26]} 9. Nd1 {[%emt 0:00:31]} Nxe2 {[%emt 0:00:40]} 10. Qxe2 {[%emt 0:00:28]} Nd4 {[%emt 0:00:13]} 11. Qd2 {[%emt 0:00:23]} d6 {[%emt 0:01:09]} 12. c3 {[%emt 0:00:11]} Nc6 {[%emt 0:00:20]} 13. Bh6 {[%emt 0:01:11]} O-O {[%emt 0:00:27]} 14. h4 {[%emt 0:00:43]} d5 {[%emt 0:01:46]} 15. h5 {[%emt 0:02:23]} Qe7 {[%emt 0:10:11]} 16. Bxg7 {[%emt 0:00:37]} Kxg7 {[%emt 0:00:04]} 17. hxg6 {[%emt 0:00:20]} fxg6 {[%emt 0:00:15]} 18. Qh6+ {[%emt 0:00:33]} Kg8 {[%emt 0:00:15]} 19. exd5 {[%emt 0:01:56]} exd5+ {[%emt 0:00:54]} 20. Ne3 {[%emt 0:00:13]} Be6 {[%emt 0:00:54]} 21. O-O-O {[%emt 0:00:44]} Rad8 {[%emt 0:00:56]} 22. Rde1 {[%emt 0:00:36]} Qg7 {[%emt 0:00:56]} 23. Qg5 {[%emt 0:01:34]} d4 {[%emt 0:01:00]} 24. Ng4 {[%emt 0:02:13]} Bxg4 {[%emt 0:01:54]} 25. Qxg4 {[%emt 0:00:29]} dxc3 {[%emt 0:01:15]} 26. Qe6+ {[%emt 0:00:31]} Rf7 {[%emt 0:01:48]} 27. Bd5 {[%emt 0:00:59]} Rxd5 {[%emt 0:15:56]} 28. Qxd5 {[%emt 0:00:30]} h5 {[%emt 0:00:42]} 29. Re8+ {[%emt 0:01:09]} Kh7 {[%emt 0:00:15]} 30. bxc3 {[%emt 0:05:48]} Qxc3+ {[%emt 0:02:07]} 31. Kb1 {[%emt 0:00:11]} Qb4+ {[%emt 0:02:31]} 32. Qb3 {[%emt 0:00:19]} Qxb3+ {[%emt 0:00:10]} 33. axb3 {[%emt 0:00:06]} Rxf2 {[%emt 0:00:11]} 34. Rc8 {[%emt 0:01:00]} Kh6 {[%emt 0:02:19]} 35. g4 {[%emt 0:01:15]} h4 {[%emt 0:04:21]} 36. Rh8+ {[%emt 0:01:23]} Kg5 {[%emt 0:00:14]} 37. R8xh4 {[%emt 0:01:00]} Rf1+ {[%emt 0:00:10]} 38. Rxf1 {[%emt 0:00:26]} Kxh4 {[%emt 0:00:07]} 39. Rf7 {[%emt 0:00:51]} b6 {[%emt 0:03:54]} 40. Rf6 {[%emt 0:00:23]} Ne5 {[%emt 0:00:19]} 41. Re6 {[%emt 0:15:14]} Nxg4 {[%emt 0:16:18]} 42. Rxg6 {[%emt 0:00:09]} Ne5 {[%emt 0:00:27]} 43. Rg7 {[%emt 0:00:39]} Nxd3 {[%emt 0:01:12]} 44. Rxa7 {[%emt 0:00:11]} Nb4 {[%emt 0:00:30]} 45. Kb2 {[%emt 0:00:54]} Kg4 {[%emt 0:00:19]} 46. Kc3 {[%emt 0:01:07]} Kf5 {[%emt 0:00:37]} 47. Kc4 {[%emt 0:00:56]} Nc6 {[%emt 0:00:17]} 48. Ra6 {[%emt 0:01:56]} Ne5+ {[%emt 0:01:03]} 49. Kd5 {[%emt 0:00:30]} Nd7 {[%emt 0:01:49]} 50. Kd6 {[%emt 0:00:22]} Nf8 {[%emt 0:00:19]} 51. Rxb6 {[%emt 0:00:36]} Kf6 {[%emt 0:01:14]} 52. Kxc5+ {[%emt 0:01:53]} Ke5 {[%emt 0:00:13]} 53. Rd6 {[%emt 0:00:58]} Nh7 {[%emt 0:00:36]} 54. Rd1 {[%emt 0:00:10]} Ke6 {[%emt 0:00:26]} 55. Kc6 {[%emt 0:00:34]} Ng5 {[%emt 0:00:26]} 56. b4 {[%emt 0:00:11]} Nf3 {[%emt 0:00:17]} 57. b5 {[%emt 0:00:21]} Ne5+ {[%emt 0:00:20]} 58. Kc7 {[%emt 0:00:14]} Nc4 {[%emt 0:00:31]} 59. b6 {[%emt 0:00:10]} Nxb6 {[%emt 0:00:29]} 60. Kxb6 {[%emt 0:00:07]} Ke5 {[%emt 0:00:09]} 61. Kc5 {[%emt 0:00:25]} Ke4 {[%emt 0:00:09]} 62. Rd8 {[%emt 0:00:28]} Ke3 {[%emt 0:00:12]} 63. Kc4 {[%emt 0:00:06]} Kf2 {[%emt 0:00:06]} 64. Re8 {[%emt 0:00:05]} Kg2 {[%emt 0:00:12]} 65. Rf8 {[%emt 0:00:05]} Kh1 {[%emt 0:00:06]} 66. Rg8 {[%emt 0:00:04]} Kh2 {[%emt 0:00:06]} 67. Kd4 {[%emt 0:00:05]} Kh3 {[%emt 0:00:05]} 68. Ke5 {[%emt 0:00:04]} Kh2 {[%emt 0:00:09]} 69. Kf4 {[%emt 0:00:06]} Kh3 {[%emt 0:00:12]} 70. Rg7 {[%emt 0:00:06]} Kh2 {[%emt 0:00:09]} 71. Kf3 {[%emt 0:00:06]} Kh1 {[%emt 0:00:14]} 72. Kf2 {[%emt 0:00:03]} Kh2 {[%emt 0:00:09]} 73. Rh7# {[%emt 0:00:03]} 1-0

[Event "GER-ch Youth-U10 2022"]
[Site "Willingen"]
[Date "2022.06.06"]
[Round "3.11"]
[White "Li, Yunqi"]
[Black "Van 't Hof, Eric"]
[Result "0-1"]
[ECO "C54"]
[WhiteElo "1312"]
[BlackElo "2081"]
[Annotator "TA"]
[PlyCount "50"]
[EventDate "2022.06.05"]
[EventType "swiss"]
[EventRounds "11"]
[EventCountry "GER"]
[SourceTitle "playchess.com"]
[Source "ChessBase"]
[SourceQuality "1"]
[TimeControl "40/4500+30:900+30"]

{[%evp 11,50,16,49,-4,8,8,15,0,27,26,22,-32,-9,-7,19,17,31,20,15,20,24,14,0,-7,29,-31,0,-46,-38,-38,34,-301,-169,-353,-350,-324,-325,-386,-404,-372,-385]} 1. e4 {[%emt 0:00:02]} e5 {[%emt 0:00:07]} 2. Nf3 {[%emt 0:00:04]} Nc6 {[%emt 0:00:07]} 3. Bc4 {[%emt 0:00:10]} Nf6 {[%emt 0:00:09]} 4. d3 {[%emt 0:00:07]} Bc5 {[%emt 0:00:09]} 5. c3 {[%emt 0:00:21]} d6 {[%emt 0:00:29]} 6. h3 {[%emt 0:00:17]} Be6 {[%emt 0:00:58]} 7. Bb5 {[%emt 0:00:21] C54: Giuoco Piano: 4 c3 Nf6, main lines with 5 d4 and 5 d3.} ({Better is} 7. Bxe6 $14 fxe6 8. b4) 7... Bd7 {[%emt 0:00:35]} 8. Ba4 {[%emt 0:00:34]} O-O {[%emt 0:00:18]} 9. Nbd2 {[%emt 0:00:07] The position is equal.} Ne7 {[%emt 0:04:25]} 10. Bc2 {[%emt 0:00:09]} Ng6 {[%emt 0:00:29]} 11. Nf1 {[%emt 0:01:03]} (11. d4 $11 exd4 12. cxd4) 11... c6 {[%emt 0:01:27] [#]} 12. Ng3 $146 {[%emt 0:02:27]} ({Predecessor:} 12. d4 Bb6 13. Ng3 h6 14. O-O Bc7 15. Re1 Re8 16. Be3 d5 17. Qd2 Nf4 18. dxe5 Nxh3+ 19. gxh3 Bxe5 20. Nxe5 Rxe5 {1-0 (49) Priese,A (1028)-Cozma,D (1010) Willingen 2007}) 12... h6 {[%emt 0:03:10]} 13. O-O {[%emt 0:00:19]} Re8 {[%emt 0:01:00]} 14. Re1 {[%emt 0:04:59]} Bb6 {[%emt 0:02:28]} 15. d4 {[%emt 0:05:14]} Qc7 {[%emt 0:01:20]} 16. a4 {[%emt 0:08:47]} a6 {[%emt 0:00:28]} 17. b3 {[%emt 0:02:13]} Rad8 {[%emt 0:04:28]} 18. Ba3 {[%emt 0:14:46]} (18. Be3 $11) 18... Be6 {[%emt 0:03:38]} 19. Qe2 {[%emt 0:02:46]} (19. Bc1 $11) 19... Nf4 $15 {[%emt 0:00:51]} 20. Qf1 {[%emt 0:02:32]} Ba7 {[%emt 0:05:54]} (20... Nh7 $15) 21. Bxd6 $2 {[%emt 0:05:09][%mdl 8192] Now White is beyond hope.} Qxd6 {[%emt 0:02:59]} (21... Rxd6 $142 22. Nxe5 {[#]} Rxd4 $1 {[%mdl 512]} 23. cxd4 Bxd4) 22. dxe5 $2 {[%emt 0:00:44] [#]} (22. Nxe5 Qc7 23. Nd3) 22... Qc7 $1 $19 {[%emt 0:00:24]} 23. exf6 {[%emt 0:02:03] [#] And now e5 would win.} Nxh3+ $1 {[%emt 0:00:28][%mdl 512]} 24. gxh3 {[%emt 0:00:53]} (24. Kh2 Nxf2) 24... Qxg3+ {[%emt 0:00:16]} 25. Qg2 {[%emt 0:00:13]} Bxf2+ $1 {[%emt 0:00:18] Weighted Error Value: White=0.56/Black=0.26 (precise)} 0-1